bitfinex-derivatives/quotes_SOLF0:USTF0_20250329
["timestamp","ask_amount","ask_price","bid_price","bid_amount"]
[1743239080910,374.3510792,126.69,126.66,0.05746676]
[1743239082908,7.8978,126.68,126.66,0.05746676]
[1743239084408,374.3507792,126.69,126.66,0.05746676]
[1743239084615,360.21538646,126.69,126.66,0.05746676]
[1743239088005,360.21538646,126.69,126.66,7.95626676]
[1743239088215,324.47808646,126.69,126.66,7.95626676]
[1743239088712,324.47808646,126.69,126.67,7.8981]
[1743239092117,301.50808646,126.69,126.67,7.8981]
[1743239095727,310.55347921,126.69,126.67,7.8981]
[1743239095926,310.55347921,126.69,126.66,7.95616676]
[1743239096825,310.55347921,126.69,126.67,7.8982]
[1743239097220,333.49347921,126.69,126.67,7.8982]
[1743239097721,9.04539275,126.68,126.66,0.05746676]
[1743239097922,16.94309275,126.68,126.66,0.05746676]
[1743239098226,9.04539275,126.67,126.66,0.05746676]
[1743239100720,36.88539275,126.67,126.66,0.05746676]
[1743239102222,27.84,126.67,126.66,0.05746676]
[1743239102422,361.33347921,126.69,126.66,0.05746676]
[1743239102824,361.33347921,126.69,126.66,7.95616676]
[1743239103019,14.2,126.68,126.66,7.95616676]
[1743239103630,14.2,126.68,126.67,7.8983]
[1743239107133,14.2,126.68,126.67,16.94369275]
[1743239107831,2.0017,126.68,126.67,16.94369275]
[1743239108035,22.99777176,126.69,126.68,7.8976]
[1743239108335,22.99777176,126.69,126.68,16.94299275]
[1743239110236,3.806,126.71,126.68,16.94539275]
[1743239110426,301.4503147,126.77,126.7,9.04539275]
[1743239110628,301.4503147,126.77,126.73,9.04539275]
[1743239110937,301.4503147,126.77,126.74,7.8937]
[1743239111326,301.50536501,126.77,126.74,7.94568859]
[1743239112330,301.50536501,126.77,126.75,7.8931]
[1743239113538,0.05505031,126.77,126.75,7.8931]
[1743239114035,0.05505031,126.77,126.74,9.09738134]
[1743239114234,0.05505031,126.77,126.74,0.05198859]
[1743239114537,7.94745031,126.77,126.74,0.05198859]
[1743239114938,0.05505031,126.77,126.74,0.05198859]
[1743239116839,9.04539275,126.76,126.74,0.05198859]
[1743239117237,9.10044306,126.77,126.74,7.94538859]
[1743239117934,0.05505031,126.77,126.74,7.94538859]
[1743239119234,0.05505031,126.77,126.75,7.8931]
[1743239119438,21.04,126.78,126.76,9.04539275]
[1743239119740,16.44,126.82,126.8,7.8901]
[1743239120051,9.04539275,126.84,126.8,7.8901]
[1743239120642,0.05880019,126.83,126.81,0.05942506]
[1743239121136,0.05880019,126.83,126.81,7.94872506]
[1743239121535,0.05880019,126.83,126.81,16.99411781]
[1743239122338,0.05880019,126.83,126.82,7.8889]
[1743239122529,0.05880019,126.83,126.82,16.93429275]
[1743239122833,0.05880019,126.83,126.81,9.10481781]
[1743239123754,0.05880019,126.83,126.81,16.99421781]
[1743239125749,0.05880019,126.83,126.82,16.93429275]
[1743239127250,0.05880019,126.83,126.82,9.04539275]
[1743239127453,0.05880019,126.83,126.81,7.94872506]
[1743239127454,0.05880019,126.83,126.81,16.99411781]
[1743239127645,0.05880019,126.83,126.81,0.05942506]
[1743239128747,0.05880019,126.83,126.81,9.10481781]
[1743239129753,0.05880019,126.83,126.82,7.8889]
[1743239130455,0.05880019,126.83,126.81,16.99411781]
[1743239130951,0.05880019,126.83,126.82,9.04539275]
[1743239131253,0.05880019,126.83,126.82,16.93429275]
[1743239136245,29.85539275,126.87,126.82,16.93429275]
[1743239136246,20.81,126.87,126.82,16.92539275]
[1743239136448,20.81,126.87,126.86,9.04539275]
[1743239136647,20.81,126.87,126.86,36.84539275]
[1743239136848,44.72849275,126.92,126.86,36.84539275]
[1743239137048,44.72849275,126.92,126.87,9.04539275]
[1743239137255,7.8831,126.92,126.88,9.04539275]
[1743239137456,0.05691658,126.91,126.88,9.09959692]
[1743239137849,7.94041658,126.91,126.88,0.05420417]
[1743239138056,0.05691658,126.91,126.88,0.05420417]
[1743239140156,0.05691658,126.91,126.88,7.93930417]
[1743239140360,0.05691658,126.91,126.88,0.05420417]
[1743239141159,7.94051658,126.91,126.88,0.05420417]
[1743239141654,0.05691658,126.91,126.88,7.93930417]
[1743239143047,9.10230933,126.91,126.88,0.05420417]
[1743239143450,16.98590933,126.91,126.88,0.05420417]
[1743239144362,7.94051658,126.91,126.88,0.05420417]
[1743239144556,0.05691658,126.91,126.88,0.05420417]
[1743239145358,7.94031658,126.91,126.88,0.05420417]
[1743239146165,0.05691658,126.91,126.88,16.98459692]
[1743239146357,0.05691658,126.91,126.88,9.09959692]
[1743239147759,0.05691658,126.91,126.89,7.8845]
[1743239148360,0.05691658,126.91,126.88,16.98449692]
[1743239149164,0.05691658,126.91,126.88,9.09959692]
[1743239149862,0.05691658,126.91,126.88,16.98449692]
[1743239150562,0.05691658,126.91,126.89,7.8844]
[1743239151564,0.05691658,126.91,126.9,9.04539275]
[1743239152562,0.05691658,126.91,126.89,9.04539275]
[1743239153967,0.05691658,126.91,126.89,16.92999275]
[1743239154970,0.05691658,126.91,126.9,9.04539275]
[1743239157561,0.05691658,126.91,126.9,16.92939275]
[1743239160070,0.05691658,126.91,126.9,7.884]
[1743239166083,0.05691658,126.91,126.89,27.78]
[1743239166677,0.05691658,126.91,126.89,35.6642]
[1743239167681,0.05691658,126.91,126.89,27.78]
[1743239169485,0.05691658,126.91,126.89,35.6644]
[1743239170282,0.05691658,126.91,126.9,7.884]
[1743239173482,0.05691658,126.91,126.9,16.92939275]
[1743239176688,38.34,126.93,126.92,7.8827]
[1743239176990,38.34,126.93,126.92,44.70809275]
[1743239177192,41.54,126.94,126.92,36.82539275]
[1743239177488,41.54,126.94,126.93,16.92749275]
[1743239177689,301.4503147,126.99,126.93,9.04539275]
[1743239177877,9.04539275,127.01,126.96,9.04539275]
[1743239178082,9.04539275,127.01,126.97,16.92479275]
[1743239178282,9.04539275,127.01,126.97,16.97572606]
[1743239178482,9.04539275,127.02,126.98,7.8789]
[1743239178685,9.04539275,127.02,126.97,9.09632606]
[1743239179289,19.52,127.01,126.97,9.09632606]
[1743239179494,39.2,127.01,126.97,9.09632606]
[1743239179888,47.0772,127.01,126.97,16.97562606]
[1743239180383,39.2,127.01,126.97,16.97562606]
[1743239181792,39.2,127.01,126.98,7.8788]
[1743239182694,39.2,127.01,126.98,16.92419275]
[1743239184095,39.2,127.01,126.99,27.78]
[1743239184498,19.52,127.01,126.99,27.78]
[1743239184898,19.52,127.01,126.99,35.6583]
[1743239185294,19.52,127.01,127.0,7.8777]
[1743239185490,19.52,127.01,127.0,16.92309275]
[1743239185690,324.7103147,127.03,127.0,9.04539275]
[1743239186096,324.7103147,127.03,127.0,9.10258497]
[1743239186291,23.26,127.03,127.01,9.04539275]
[1743239186795,23.26,127.03,127.01,16.92199275]
[1743239187000,23.26,127.03,127.0,9.10258497]
[1743239187305,23.26,127.03,127.01,7.8768]
[1743239187503,9.04539275,127.02,127.0,0.05719222]
[1743239187897,16.92229275,127.02,127.0,0.05719222]
[1743239188301,9.04539275,127.02,127.0,0.05719222]
[1743239189600,9.04539275,127.01,127.0,0.05719222]
[1743239190000,16.92249275,127.01,127.0,0.05719222]
[1743239191195,13.25069275,127.02,127.0,0.05719222]
[1743239191801,42.11,127.03,127.01,9.04539275]
[1743239192995,42.11,127.03,127.02,7.8765]
[1743239193305,32.25979275,127.06,127.02,7.8765]
[1743239193707,32.25979275,127.06,127.03,0.05435913]
[1743239194201,9.04539275,127.04,127.03,0.05435913]
[1743239194409,9.04539275,127.03,126.99,9.04539275]
[1743239194602,9.04539275,127.03,126.99,16.92339275]
[1743239195306,9.04539275,127.02,126.98,44.68409275]
[1743239195507,9.09703815,127.02,127.0,0.05172252]
[1743239196304,16.97383815,127.02,127.0,0.05172252]
[1743239196902,9.09703815,127.02,127.0,0.05172252]
[1743239198802,0.0516454,127.02,127.0,7.92912252]
[1743239199007,0.0516454,127.02,127.0,0.05172252]
[1743239199597,0.0516454,127.02,127.01,7.8771]
[1743239200714,0.0516454,127.02,127.0,7.92922252]
[1743239203906,0.0516454,127.02,127.0,0.05172252]
[1743239205641,0.0516454,127.02,127.0,9.09711527]
[1743239206836,0.0516454,127.02,127.01,7.8771]
[1743239207639,0.0516454,127.02,127.0,16.97481527]
[1743239208338,0.0516454,127.02,127.0,9.09711527]
[1743239208934,0.0516454,127.02,127.01,7.8771]
[1743239212830,0.0516454,127.02,127.0,44.73441527]
[1743239213042,0.0516454,127.02,127.0,35.68902252]
[1743239213643,0.0516454,127.02,127.01,7.8771]
[1743239216646,0.0516454,127.02,127.0,35.68912252]
[1743239217748,9.09703815,127.02,127.0,0.05172252]
[1743239217942,9.04539275,127.01,127.0,0.05172252]
[1743239218342,9.04539275,127.0,126.95,36.80539275]
[1743239218536,9.04539275,126.99,126.95,36.80539275]
[1743239218942,9.04539275,126.99,126.96,7.8798]
[1743239219141,9.04539275,127.0,126.95,9.04539275]
[1743239219350,0.05920329,126.98,126.96,9.09731434]
[1743239219743,0.05920329,126.98,126.97,7.8793]
[1743239220551,0.05920329,126.98,126.96,16.97721434]
[1743239221049,0.05920329,126.98,126.96,9.09731434]
[1743239221253,0.05920329,126.98,126.96,0.05192159]
[1743239221840,0.05920329,126.98,126.96,7.93202159]
[1743239222951,0.05920329,126.98,126.97,7.8796]
[1743239223159,0.05920329,126.98,126.97,16.92499275]
[1743239224847,0.05920329,126.98,126.96,27.81192159]
[1743239225142,0.05920329,126.98,126.96,0.05192159]
[1743239226750,0.05920329,126.98,126.96,7.93182159]
[1743239227150,0.05920329,126.98,126.96,0.05192159]
[1743239227852,0.05920329,126.98,126.96,7.93182159]
[1743239230557,7.93820329,126.98,126.96,0.05192159]
[1743239230958,9.04539275,126.97,126.96,0.05192159]
[1743239231152,7.8811,126.95,126.91,9.04539275]
[1743239231359,36.80539275,126.96,126.91,9.04539275]
[1743239231549,44.68609275,126.96,126.92,7.8823]
[1743239231859,305.6379147,127.0,126.92,9.04539275]
[1743239232057,7.8808,126.96,126.92,44.68779275]
[1743239232462,7.8808,126.96,126.95,0.05367826]
[1743239233256,16.92619275,126.96,126.95,0.05367826]
[1743239233457,7.8825,126.93,126.9,0.28363]
[1743239234367,9.04539275,126.94,126.9,0.28363]
[1743239234368,16.92719275,126.94,126.9,0.28363]
[1743239234560,0.06055888,126.93,126.9,0.33528862]
[1743239234754,0.06055888,126.93,126.9,9.38068137]
[1743239235159,0.06055888,126.93,126.92,16.92809275]
[1743239235559,0.06055888,126.93,126.92,44.68809275]
[1743239242169,0.06055888,126.93,126.92,27.76]
[1743239242475,0.06055888,126.93,126.9,0.05165862]
[1743239243275,0.06055888,126.93,126.9,16.98065137]
[1743239243763,19.69,126.92,126.9,16.98065137]
[1743239243965,19.69,126.92,126.91,16.92869275]
[1743239247362,19.69,126.92,126.9,7.93535862]
[1743239247568,19.69,126.92,126.9,0.05165862]
[1743239249874,19.69,126.92,126.9,9.09705137]
[1743239250872,19.69,126.92,126.91,7.8833]
[1743239251066,19.69,126.92,126.9,9.09705137]
[1743239251273,19.69,126.92,126.9,0.05165862]
[1743239252375,28.73539275,126.92,126.9,0.05165862]
[1743239252576,36.80539275,126.91,126.85,9.04539275]
[1743239252773,9.04539275,126.88,126.84,9.04539275]
[1743239252968,9.04539275,126.88,126.83,9.04539275]
[1743239253173,16.93109275,126.88,126.83,16.93329275]
[1743239253568,9.04539275,126.88,126.83,9.04539275]
[1743239253768,0.05833534,126.87,126.85,7.8869]
[1743239256779,0.05833534,126.87,126.86,7.8864]
[1743239258074,0.05833534,126.87,126.85,7.8868]
[1743239259278,0.05833534,126.87,126.86,7.8864]
[1743239260075,0.05833534,126.87,126.85,7.8869]
[1743239260581,0.05833534,126.87,126.84,22.03495841]
[1743239260881,0.05833534,126.87,126.84,14.14755841]
[1743239261281,0.05833534,126.87,126.85,7.8867]
[1743239263282,0.05833534,126.87,126.84,0.05559344]
[1743239263982,0.05833534,126.87,126.85,7.887]
[1743239264976,0.05833534,126.87,126.84,7.94299344]
[1743239266585,7.94433534,126.87,126.84,0.05559344]
[1743239267683,15.96,126.86,126.84,0.05559344]
[1743239268889,43.5465,126.86,126.84,0.05559344]
[1743239270185,42.05196497,126.85,126.77,27.96]
[1743239270589,7.8886,126.83,126.79,7.8905]
[1743239270782,44.04726497,126.85,126.79,7.8905]
[1743239271182,0.05038836,126.83,126.81,0.05599528]
[1743239271987,7.93898836,126.83,126.81,0.05599528]
[1743239272285,0.05038836,126.83,126.81,0.05599528]
[1743239274184,0.05038836,126.83,126.82,7.8889]
[1743239275385,0.05038836,126.83,126.81,7.94529528]
[1743239277198,0.05038836,126.83,126.81,0.05599528]
[1743239277991,7.93918836,126.83,126.81,0.05599528]
[1743239278384,0.05038836,126.83,126.81,0.05599528]
[1743239278587,7.8889,126.82,126.81,0.05599528]
[1743239278788,28.02,126.82,126.76,262.0789]
[1743239279092,7.8906,126.8,126.76,269.9711]
[1743239279485,7.8906,126.8,126.76,267.9522]
[1743239279885,24.21,126.79,126.76,260.06]
[1743239280093,24.26814076,126.79,126.77,0.05421976]
[1743239280586,24.26814076,126.79,126.77,7.94591976]
[1743239281395,24.26814076,126.79,126.77,0.05421976]
[1743239282287,42.06814076,126.79,126.77,0.05421976]
[1743239282685,81.48814076,126.79,126.77,0.05421976]
[1743239284093,81.48814076,126.79,126.77,7.94621976]
[1743239284485,81.48814076,126.79,126.78,7.8914]
[1743239284685,81.48814076,126.79,126.77,0.05421976]
[1743239285294,81.48814076,126.79,126.77,7.94591976]
[1743239286296,81.48814076,126.79,126.78,7.8914]
[1743239287794,81.48814076,126.79,126.77,0.05421976]
[1743239288396,81.48814076,126.79,126.78,7.8914]
[1743239288907,81.48814076,126.79,126.78,9.02680968]
[1743239290095,81.48814076,126.79,126.78,16.91820968]
[1743239291005,81.48814076,126.79,126.78,7.8914]
[1743239293104,57.27814076,126.79,126.78,7.8914]
[1743239294003,57.27814076,126.79,126.78,16.91820968]
[1743239294301,301.4503147,126.84,126.8,7.8896]
[1743239294503,301.4503147,126.84,126.8,16.91640968]
[1743239295099,309.3380147,126.84,126.8,16.91640968]
[1743239295605,0.05587375,126.83,126.81,0.04980885]
[1743239296195,0.05587375,126.83,126.81,7.93920885]
[1743239297008,9.08268343,126.83,126.81,0.04980885]
[1743239299011,36.94680968,126.82,126.77,9.02680968]
[1743239299204,9.02680968,126.8,126.75,36.94680968]
[1743239299407,16.91730968,126.8,126.76,7.8923]
[1743239299813,9.02680968,126.79,126.74,9.02680968]
[1743239300007,16.91800968,126.79,126.75,7.8929]
[1743239300213,0.05437272,126.78,126.75,0.05243026]
[1743239300514,9.0811824,126.78,126.75,0.05243026]
[1743239300716,0.05437272,126.78,126.75,0.05243026]
[1743239300920,0.05437272,126.78,126.75,9.07923994]
[1743239301609,0.05437272,126.78,126.76,7.8927]
[1743239302412,0.05437272,126.78,126.75,0.05243026]
[1743239302618,9.0811824,126.78,126.75,0.05243026]
[1743239302817,16.75,126.77,126.75,0.05243026]
[1743239303412,16.75,126.77,126.76,7.8927]
[1743239309326,16.75,126.77,126.75,16.97223994]
[1743239309523,16.75,126.77,126.75,0.05243026]
[1743239310724,16.75,126.77,126.76,7.8927]
[1743239318731,16.75,126.77,126.75,7.94543026]
[1743239322635,16.75,126.77,126.76,7.8927]
[1743239323229,16.75,126.77,126.75,7.94523026]
[1743239325129,9.02680968,126.76,126.65,23.6971]
[1743239325334,9.02680968,126.76,126.71,9.02680968]
[1743239325532,16.91980968,126.76,126.72,7.8947]
[1743239325934,9.02680968,126.76,126.71,9.02680968]
[1743239326338,0.06034682,126.75,126.72,7.9522062]
[1743239329536,0.06034682,126.75,126.73,7.8945]
[1743239332329,0.06034682,126.75,126.74,7.8939]
[1743239332534,0.06034682,126.75,126.72,0.0574062]
[1743239333239,0.06034682,126.75,126.73,7.8942]
[1743239337540,0.06034682,126.75,126.72,16.97901588]
[1743239339439,9.0871565,126.75,126.72,0.0574062]
[1743239339634,9.02680968,126.74,126.72,0.0574062]
[1743239340442,32.68680968,126.74,126.72,0.0574062]
[1743239340741,40.58100968,126.74,126.72,0.0574062]
[1743239340935,32.68680968,126.74,126.72,0.0574062]
[1743239341137,55.04680968,126.74,126.72,0.0574062]
[1743239341741,62.94100968,126.74,126.72,0.0574062]
[1743239342135,55.04680968,126.74,126.72,0.0574062]
[1743239342339,9.02680968,126.73,126.66,9.02680968]
[1743239342641,9.02680968,126.7,126.65,9.02680968]
[1743239342845,16.92380968,126.7,126.66,7.8985]
[1743239343546,0.05469332,126.69,126.67,0.05574498]
[1743239343739,0.05469332,126.69,126.67,7.95384498]
[1743239345045,0.05469332,126.69,126.68,16.92440968]
[1743239346450,22.76,126.7,126.69,7.897]
[1743239346752,22.76,126.7,126.69,16.92380968]
[1743239353170,0.76,126.7,126.69,16.92380968]
[1743239353353,0.05394328,126.71,126.7,7.8964]
[1743239360367,0.05394328,126.71,126.69,9.02680968]
[1743239361876,46.02,126.74,126.7,27.82]
[1743239362177,46.02,126.74,126.71,9.02680968]
[1743239362475,19.72,126.73,126.71,9.02680968]
[1743239362974,19.77246007,126.73,126.71,9.08189408]
[1743239364073,19.77246007,126.73,126.71,16.97739408]
[1743239367479,19.77246007,126.73,126.71,9.08189408]
[1743239368181,19.77246007,126.73,126.71,16.97729408]
[1743239370881,19.77246007,126.73,126.71,0.0550844]
[1743239371080,9.02680968,126.72,126.71,0.0550844]
[1743239371584,9.02680968,126.71,126.66,36.84680968]
[1743239371783,16.92260968,126.72,126.67,9.02680968]
[1743239372484,0.04960709,126.71,126.68,0.05091472]
[1743239372783,0.04960709,126.71,126.68,7.94821472]
[1743239372981,0.04960709,126.71,126.68,0.05091472]
[1743239373186,0.04960709,126.71,126.68,9.0777244]
[1743239373780,0.04960709,126.71,126.69,7.8967]
[1743239376077,0.04960709,126.71,126.68,9.0777244]
[1743239376282,0.04960709,126.71,126.68,0.05091472]
[1743239376590,0.04960709,126.71,126.69,7.897]
[1743239377183,17.45960709,126.71,126.69,7.897]
[1743239377590,17.45960709,126.71,126.68,9.0777244]
[1743239379183,7.8968,126.7,126.68,0.05091472]
[1743239379388,26.48641677,126.71,126.68,0.05091472]
[1743239380093,7.8968,126.7,126.68,0.05091472]
[1743239380893,16.92360968,126.7,126.68,0.05091472]
[1743239381894,9.02680968,126.69,126.63,9.02680968]
[1743239382194,9.02680968,126.68,126.63,9.02680968]
[1743239382786,16.92470968,126.68,126.64,7.9]
[1743239382986,0.05850685,126.67,126.64,7.9547737]
[1743239383187,0.05850685,126.67,126.64,9.08158338]
[1743239383388,0.05850685,126.67,126.65,7.8995]
[1743239383996,0.05850685,126.67,126.64,16.98158338]
[1743239384189,0.05850685,126.67,126.64,9.08158338]
[1743239384684,0.05850685,126.67,126.65,7.8992]
[1743239387397,0.05850685,126.67,126.64,16.98148338]
[1743239387596,0.05850685,126.67,126.64,0.0547737]
[1743239388595,7.95690685,126.67,126.64,7.9547737]
[1743239389000,7.95690685,126.67,126.64,0.0547737]
[1743239390291,19.73,126.66,126.64,0.0547737]
[1743239393193,7.8995,126.65,126.64,0.0547737]
[1743239395095,27.6292,126.66,126.64,0.0547737]
[1743239396698,36.65600968,126.66,126.64,0.0547737]
[1743239396894,16.92630968,126.65,126.64,0.0547737]
[1743239397299,9.02680968,126.65,126.64,0.0547737]
[1743239400904,84.80620968,126.66,126.64,0.0547737]
[1743239403011,76.90680968,126.66,126.64,0.0547737]
[1743239403310,67.88,126.66,126.64,0.0547737]
[1743239404915,67.88,126.66,126.65,16.92630968]
[1743239407312,48.15,126.66,126.65,16.92630968]
[1743239411523,43.14,126.66,126.65,16.92630968]
[1743239414821,43.14,126.66,126.64,0.0547737]
[1743239415122,52.16680968,126.66,126.64,0.0547737]
[1743239415323,30.59680968,126.66,126.64,0.0547737]
[1743239418231,38.49600968,126.66,126.64,0.0547737]
[1743239427239,9.02680968,126.65,126.59,36.84680968]
[1743239427435,9.02680968,126.64,126.59,36.84680968]
[1743239427639,9.02680968,126.65,126.6,9.02680968]
[1743239428235,0.0560403,126.64,126.61,0.06040164]
[1743239428839,7.9565403,126.64,126.61,7.96240164]
[1743239429440,0.0560403,126.64,126.61,7.96240164]
[1743239429640,0.0560403,126.64,126.61,16.98921132]
[1743239431139,0.0560403,126.64,126.62,7.9011]
[1743239431440,0.0560403,126.64,126.61,9.08721132]
[1743239431836,0.0560403,126.64,126.61,7.96210164]
[1743239433642,7.9561403,126.64,126.61,0.06040164]
[1743239434038,0.0560403,126.64,126.61,0.06040164]
[1743239434234,0.0560403,126.64,126.61,7.96230164]
[1743239435546,0.0560403,126.64,126.61,0.06040164]
[1743239438749,7.9562403,126.64,126.61,0.06040164]
[1743239439050,23.58,126.63,126.61,0.06040164]
[1743239439248,32.60680968,126.63,126.61,0.06040164]
[1743239439644,23.58,126.63,126.61,0.06040164]
[1743239440244,31.4808,126.63,126.61,0.06040164]
[1743239440640,23.58,126.63,126.61,0.06040164]
[1743239446042,23.58,126.63,126.61,7.96230164]
[1743239447152,23.58,126.63,126.61,0.06040164]
[1743239447639,23.58,126.63,126.62,16.92820968]
[1743239447640,28.59,126.63,126.62,16.92820968]
[1743239447844,28.59,126.63,126.61,36.90721132]
[1743239448043,28.59,126.63,126.61,27.88040164]
[1743239448249,28.59,126.63,126.61,35.78230164]
[1743239448548,46.63,126.63,126.61,35.78230164]
[1743239449647,46.63,126.63,126.61,27.88040164]
[1743239449853,46.63,126.63,126.61,0.06040164]
[1743239450346,94.74680968,126.63,126.61,0.06040164]
[1743239450545,85.72,126.63,126.61,0.06040164]
[1743239451854,85.72,126.63,126.62,7.9014]
[1743239458759,80.71,126.63,126.62,7.9014]
[1743239461149,80.71,126.63,126.61,44.80891132]
[1743239462362,85.72,126.63,126.62,7.9014]
[1743239462765,62.14,126.63,126.61,44.80891132]
[1743239466864,62.14,126.63,126.62,7.9014]
[1743239467364,44.1,126.63,126.62,7.9014]
[1743239467765,44.1,126.63,126.61,44.80901132]
[1743239467965,44.1,126.63,126.61,35.78220164]
[1743239469365,44.1,126.63,126.62,7.9014]
[1743239478374,24.75,126.63,126.62,7.9014]
[1743239478973,24.75,126.63,126.61,44.80891132]
[1743239479363,24.75,126.63,126.61,35.78210164]
[1743239479870,24.75,126.63,126.61,27.88040164]
[1743239480076,9.02680968,126.62,126.61,0.06040164]
[1743239487174,24.75,126.63,126.62,7.9014]
[1743239487573,5.01,126.63,126.62,7.9014]
[1743239488476,17.2460403,126.64,126.63,7.9008]
[1743239491477,17.2460403,126.64,126.62,7.9011]
[1743239492188,22.2560403,126.64,126.61,9.08721132]
[1743239492686,17.58,126.63,126.61,16.98891132]
[1743239494388,37.32,126.63,126.61,16.98891132]
[1743239496990,37.32,126.63,126.62,7.9014]
[1743239497398,37.32,126.63,126.62,16.92820968]
[1743239498199,37.32,126.63,126.62,9.02680968]
[1743239498495,37.32,126.63,126.61,16.98891132]
[1743239499897,37.32,126.63,126.61,0.06040164]
[1743239500389,54.24790968,126.63,126.61,0.06040164]
[1743239500794,9.02680968,126.62,126.61,0.06040164]
[1743239501594,16.92820968,126.62,126.61,0.06040164]
[1743239502490,7.9028,126.6,126.56,27.8]
[1743239502690,9.02680968,126.6,126.56,27.8]
[1743239502890,9.02680968,126.6,126.56,7.9048]
[1743239503087,16.92980968,126.6,126.56,7.9048]
[1743239503291,9.02680968,126.6,126.55,36.84680968]
[1743239503493,9.02680968,126.6,126.56,0.05900546]
[1743239503494,0.05108791,126.59,126.56,0.05900546]
[1743239504897,0.05108791,126.59,126.58,7.9039]
[1743239506199,8.791e-05,126.59,126.58,44.75070968]
[1743239509795,8.791e-05,126.59,126.58,35.7239]
[1743239515701,8.791e-05,126.59,126.57,7.9043]
[1743239517008,8.791e-05,126.59,126.58,7.9039]
[1743239521117,9.02689759,126.59,126.56,7.96400546]
[1743239521412,9.02689759,126.59,126.56,0.05900546]
[1743239522513,8.791e-05,126.59,126.57,7.9045]
[1743239522710,8.791e-05,126.59,126.56,9.08581514]
[1743239522909,8.791e-05,126.59,126.57,9.02680968]
[1743239523406,8.791e-05,126.59,126.58,7.9039]
[1743239524214,8.791e-05,126.59,126.58,16.93070968]
[1743239526809,44.18735241,126.6,126.59,7.9033]
[1743239527007,19.74,126.6,126.59,44.75010968]
[1743239535223,25.88108879,126.61,126.6,7.9026]
[1743239535424,25.88108879,126.61,126.6,16.92940968]
[1743239548024,25.88108879,126.61,126.6,7.9026]
[1743239550932,0.05108879,126.61,126.6,7.9026]
[1743239574453,0.05108879,126.61,126.6,16.92940968]
[1743239574653,0.05108879,126.61,126.59,7.95859849]
[1743239574854,0.05108879,126.61,126.59,0.05559849]
[1743239575652,0.05108879,126.61,126.59,7.95849849]
[1743239576153,0.05108879,126.61,126.6,7.9026]
[1743239577352,0.05108879,126.61,126.6,16.92940968]
[1743239580553,0.05108879,126.61,126.6,7.9026]
[1743239580756,0.05108879,126.61,126.59,35.75859849]
[1743239581959,0.05108879,126.61,126.6,7.9026]
[1743239595973,0.05108879,126.61,126.59,44.78530817]
[1743239596172,0.05108879,126.61,126.59,36.88240817]
[1743239597773,7.95338879,126.61,126.59,0.05559849]
[1743239597973,0.05108879,126.61,126.59,0.05559849]
[1743239598474,16.98019847,126.61,126.59,0.05559849]
[1743239600182,0.05108879,126.61,126.59,0.05559849]
[1743239600568,0.05108879,126.61,126.6,7.9026]
[1743239602671,0.05108879,126.61,126.6,16.92940968]
[1743239604784,0.05108879,126.61,126.6,44.72940968]
[1743239606178,301.4503147,126.7,126.6,44.72680968]
[1743239606383,9.02680968,126.73,126.68,9.02680968]
[1743239606570,342.59252438,126.74,126.68,9.02680968]
[1743239606775,342.59252438,126.74,126.69,9.02680968]
[1743239606978,26.42,126.72,126.7,9.02680968]
[1743239607174,26.47356337,126.72,126.7,9.08167299]
[1743239607575,53.42356337,126.72,126.71,9.02680968]
[1743239609376,53.42356337,126.72,126.7,36.88167299]
[1743239609575,53.42356337,126.72,126.7,27.85486331]
[1743239609775,53.42356337,126.72,126.7,0.05486331]
[1743239609984,62.45037305,126.72,126.7,0.05486331]
[1743239610183,62.45037305,126.72,126.67,36.82680968]
[1743239611075,62.45037305,126.72,126.67,44.72500968]
[1743239611277,62.45037305,126.72,126.68,0.05967405]
[1743239611875,9.02680968,126.71,126.68,0.05967405]
[1743239612276,16.92260968,126.71,126.68,0.05967405]
[1743239613085,9.02680968,126.71,126.68,0.05967405]
[1743239614382,9.02680968,126.71,126.68,7.95677405]
[1743239614583,62.45037305,126.72,126.68,7.95677405]
[1743239614779,53.42356337,126.72,126.68,0.05967405]
[1743239615471,53.42356337,126.72,126.68,9.08648373]
[1743239615878,70.34567305,126.72,126.68,0.05967405]
[1743239617175,62.45037305,126.72,126.68,7.95717405]
[1743239617379,53.42356337,126.72,126.68,16.98398373]
[1743239619485,61.31876337,126.72,126.68,16.98398373]
[1743239621482,53.42356337,126.72,126.68,16.98398373]
[1743239622385,61.31876337,126.72,126.68,16.98398373]
[1743239625792,34.89876337,126.72,126.68,16.98398373]
[1743239627689,7.94876337,126.72,126.68,16.98398373]
[1743239628789,7.94876337,126.72,126.69,7.897]
[1743239639697,7.8958,126.71,126.68,16.98378373]